bitfinex-derivatives/quotes_BTCF0:USTF0_20250119
["timestamp","ask_amount","ask_price","bid_price","bid_amount"]
[1737305413135,0.58273958,105030.0,105010.0,0.05066275]
[1737305413136,0.13321029,105020.0,105010.0,0.05066275]
[1737305413638,0.13321029,105020.0,105000.0,0.408486]
[1737305413941,0.13321029,105020.0,105000.0,0.41623866]
[1737305414836,0.17578367,105020.0,105010.0,0.047683]
[1737305415441,0.17578367,105020.0,105010.0,0.0506648]
[1737305415941,0.17578367,105020.0,105010.0,0.047683]
[1737305416330,0.17578367,105020.0,105010.0,0.0506648]
[1737305417438,0.1855741,105020.0,105010.0,0.0506648]
[1737305417832,0.35682731,105020.0,105010.0,0.0506648]
[1737305418433,0.35682731,105020.0,105010.0,0.0613993]
[1737305419140,0.21424364,105020.0,105010.0,0.0613993]
[1737305420638,0.21424364,105020.0,105010.0,0.23283997]
[1737305420639,0.04299043,105020.0,105010.0,0.23283997]
[1737305421244,0.04299043,105020.0,105010.0,0.23284011]
[1737305421745,0.1570849,105020.0,105010.0,0.46134687]
[1737305423144,0.1570849,105020.0,105010.0,0.2899062]
[1737305423347,0.1570849,105020.0,105010.0,0.28990595]
[1737305423954,0.2047639,105020.0,105010.0,0.28990595]
[1737305424248,0.25709519,105020.0,105010.0,0.28990595]
[1737305425843,0.2047639,105020.0,105010.0,0.28990595]
[1737305426641,0.5655639,105020.0,105010.0,0.28990595]
[1737305427244,0.2047639,105020.0,105010.0,0.28990595]
[1737305428438,0.40454072,105020.0,105010.0,0.06139919]
[1737305430047,0.31387129,105020.0,105010.0,0.47453048]
[1737305430257,0.31387129,105020.0,105010.0,0.57363048]
[1737305430459,0.31387129,105020.0,105010.0,0.57373806]
[1737305430952,0.14261808,105030.0,105020.0,0.047679]
[1737305431152,0.14261808,105030.0,105020.0,0.42219519]
[1737305431352,0.14261808,105030.0,105020.0,0.42219348]
[1737305432153,0.24262337,105030.0,105020.0,0.42230106]
[1737305432356,0.44727658,105030.0,105020.0,0.42219348]
[1737305432557,0.48037658,105030.0,105020.0,0.42219348]
[1737305433458,0.7325585,105030.0,105020.0,0.06139348]
[1737305433664,0.7325585,105030.0,105020.0,0.05066041]
[1737305434756,0.68022721,105030.0,105020.0,0.05066041]
[1737305434953,0.7325585,105030.0,105020.0,0.05066041]
[1737305435453,0.78488979,105030.0,105020.0,0.00298169]
[1737305435756,0.047679,105020.0,105010.0,0.21878765]
[1737305435957,0.10001029,105020.0,105010.0,0.22176949]
[1737305436149,0.10001029,105020.0,105010.0,0.56438193]
[1737305437457,0.60365894,105020.0,105010.0,0.45041322]
[1737305439071,0.14284865,105020.0,105010.0,0.45041322]
[1737305439260,0.14284865,105020.0,105010.0,0.22190646]
[1737305439851,0.15222659,105020.0,105010.0,0.22190646]
[1737305440658,0.15222659,105020.0,105010.0,0.45041322]
[1737305441461,0.15222659,105020.0,105010.0,0.45041313]
[1737305441651,0.15222659,105020.0,105010.0,0.46114744]
[1737305441851,0.15222659,105020.0,105010.0,0.28990482]
[1737305441852,0.26654823,105020.0,105010.0,0.28990482]
[1737305442253,0.26654823,105020.0,105010.0,0.68490482]
[1737305443354,0.26654823,105020.0,105010.0,0.45639806]
[1737305443355,0.15222659,105020.0,105010.0,0.45639806]
[1737305444765,0.15222659,105020.0,105010.0,0.62774283]
[1737305444952,0.15222659,105020.0,105010.0,0.61402677]
[1737305445155,0.15222659,105020.0,105010.0,0.62774252]
[1737305445556,0.15222659,105020.0,105010.0,0.62774247]
[1737305446868,0.15222659,105020.0,105010.0,0.26694247]
[1737305447058,0.25223688,105020.0,105010.0,0.18506047]
[1737305447261,0.64144144,105020.0,105010.0,0.18506047]
[1737305447460,0.64144144,105020.0,105010.0,0.17909712]
[1737305447762,0.64144144,105020.0,105000.0,0.22850676]
[1737305447966,0.56181429,105010.0,105000.0,0.23626004]
[1737305448357,0.61414558,105010.0,104990.0,0.28521133]
[1737305448662,0.51315058,105000.0,104990.0,0.28521133]
[1737305448865,0.51315058,105000.0,104990.0,0.23949749]
[1737305449168,0.51315058,105000.0,104990.0,0.17142217]
[1737305450760,0.51315058,105000.0,104960.0,0.39392889]
[1737305450761,0.82720278,105000.0,104960.0,0.39392889]
[1737305450968,0.10003229,104970.0,104960.0,0.08083389]
[1737305451163,0.10003229,104970.0,104960.0,0.03312889]
[1737305451468,0.46083229,104970.0,104960.0,0.03312889]
[1737305451660,0.46083229,104970.0,104960.0,0.02383284]
[1737305451968,0.46083229,104970.0,104950.0,0.4559535]
[1737305452269,0.21417416,104970.0,104950.0,0.11421]
[1737305452469,0.57497416,104970.0,104950.0,0.11421]
[1737305453366,0.10003729,104960.0,104950.0,0.0665]
[1737305453568,0.047706,104960.0,104950.0,0.0665]
[1737305453866,0.10003729,104960.0,104950.0,0.0665]
[1737305455568,0.047706,104960.0,104950.0,0.0665]
[1737305460371,0.047706,104960.0,104950.0,0.06948344]
[1737305461577,0.047706,104960.0,104950.0,0.0665]
[1737305462774,0.047706,104960.0,104950.0,0.11421]
[1737305463072,0.047706,104960.0,104950.0,0.47501]
[1737305464872,0.00972877,104970.0,104950.0,0.47963129]
[1737305465068,0.14694187,104980.0,104960.0,0.10003729]
[1737305465270,0.11414187,104980.0,104970.0,0.51316358]
[1737305465577,0.142751,104990.0,104980.0,0.047697]
[1737305465767,0.142751,104990.0,104980.0,0.49702829]
[1737305466169,0.3140522,105000.0,104990.0,0.047692]
[1737305466376,0.3140522,105000.0,104990.0,0.13502329]
[1737305466766,0.3140522,105000.0,104990.0,0.49582329]
[1737305467571,0.3622291,105010.0,105000.0,0.047688]
[1737305467771,0.3622291,105010.0,105000.0,0.10001929]
[1737305467971,0.3622291,105010.0,105000.0,0.047688]
[1737305468174,0.4099121,105010.0,105000.0,0.047688]
[1737305469669,0.46224339,105010.0,104990.0,0.443491]
[1737305470065,0.047688,105000.0,104990.0,0.443491]
[1737305470469,0.047688,105000.0,104990.0,0.44647324]
[1737305471871,0.047688,105000.0,104990.0,0.49880453]
[1737305472074,0.047688,105000.0,104990.0,0.49582229]
[1737305472474,0.4099131,105010.0,104990.0,0.44647324]
[1737305472674,0.46224439,105010.0,104990.0,0.44647324]
[1737305474576,0.46224439,105010.0,104990.0,0.44548194]
[1737305474981,0.60499539,105010.0,104990.0,0.44548194]
[1737305475284,0.047688,105000.0,104990.0,0.44548199]
[1737305475575,0.047688,105000.0,104990.0,0.39779099]
[1737305475776,0.10001929,105000.0,104990.0,0.00298229]
[1737305476182,0.13291929,105000.0,104990.0,0.00298229]
[1737305476977,0.49371929,105000.0,104990.0,0.00298229]
[1737305477188,0.49371929,105000.0,104980.0,0.083896]
[1737305477378,0.49371929,105000.0,104980.0,0.08687859]
[1737305477580,0.13291929,105000.0,104980.0,0.12017859]
[1737305477773,0.44603129,105000.0,104980.0,0.12017859]
[1737305477980,0.047692,104990.0,104980.0,0.12017859]
[1737305478678,0.047692,104990.0,104980.0,0.07248259]
[1737305478679,0.10002329,104990.0,104980.0,0.07248259]
[1737305478987,0.10002329,104990.0,104970.0,0.408501]
[1737305479183,0.13602329,104990.0,104970.0,0.41625584]
[1737305479485,0.13602329,104990.0,104970.0,0.41625586]
[1737305479486,0.16932329,104990.0,104970.0,0.41625586]
[1737305479677,0.16932329,104990.0,104970.0,0.41625587]
[1737305480979,0.53012329,104990.0,104970.0,0.41625587]
[1737305481888,0.67287429,104990.0,104970.0,0.41625587]
[1737305482080,0.31207429,104990.0,104970.0,0.41625587]
[1737305482280,0.67287429,104990.0,104970.0,0.41625587]
[1737305482479,0.67287429,104990.0,104970.0,0.05545587]
[1737305483386,0.67287429,104990.0,104970.0,0.05068364]
[1737305483584,0.67287429,104990.0,104970.0,0.05545618]
[1737305483781,0.67287429,104990.0,104970.0,0.00783713]
[1737305483987,0.620543,104990.0,104970.0,0.05068264]
[1737305484198,0.620543,104990.0,104970.0,0.41148264]
[1737305484392,0.620543,104990.0,104970.0,0.4162551]
[1737305484593,0.620543,104990.0,104970.0,0.41148264]
[1737305484995,0.620543,104990.0,104970.0,0.46381393]
[1737305485291,0.142751,104990.0,104980.0,0.46082829]
[1737305485491,0.142751,104990.0,104980.0,0.46858289]
[1737305485701,0.142751,104990.0,104980.0,0.4162516]
[1737305485998,0.142751,104990.0,104980.0,0.46858289]
[1737305486200,0.142751,104990.0,104980.0,0.50556157]
[1737305486388,0.142751,104990.0,104980.0,0.49959701]
[1737305486599,0.1713012,105000.0,104990.0,0.047687]
[1737305486904,0.1713012,105000.0,104990.0,0.57127206]
[1737305487203,0.1713012,105000.0,104990.0,0.6022836]
[1737305487399,0.1713012,105010.0,104990.0,0.5545966]
[1737305487600,0.1713012,105010.0,105000.0,0.46081429]
[1737305487899,0.1713012,105010.0,105000.0,0.46379693]
[1737305488999,0.2879762,105020.0,105000.0,0.46379693]
[1737305489196,0.29758497,105020.0,105010.0,0.41313129]
[1737305490997,0.29758497,105020.0,105010.0,0.3608]
[1737305491307,0.29758497,105020.0,105010.0,0.408478]
[1737305492007,0.1713012,105020.0,105010.0,0.46080929]
[1737305492407,0.1713012,105020.0,105010.0,0.46379089]
[1737305493098,0.1713012,105020.0,105010.0,0.46856107]
[1737305493905,0.30412713,105040.0,105010.0,0.46856107]
[1737305494097,0.25179584,105040.0,105020.0,0.49400329]
[1737305494301,0.25179584,105040.0,105020.0,0.53088489]
[1737305494702,0.26151632,105040.0,105020.0,0.53088489]
[1737305494902,0.26151632,105040.0,105020.0,0.53088466]
[1737305495107,0.047669,105030.0,105020.0,0.47855337]
[1737305495605,0.047669,105030.0,105020.0,0.11775337]
[1737305496396,0.10000029,105030.0,105020.0,0.07008137]
[1737305496595,0.10000029,105030.0,105020.0,0.03618137]
[1737305496909,0.10000029,105030.0,105020.0,0.0332]
[1737305497699,0.047669,105030.0,105020.0,0.0332]
[1737305498600,0.10000029,105030.0,105020.0,0.0332]
[1737305499615,0.047669,105030.0,105020.0,0.0332]
[1737305500203,0.408469,105030.0,105020.0,0.0332]
[1737305500410,0.047669,105030.0,105020.0,0.0332]
[1737305500618,0.10000029,105030.0,105020.0,0.0332]
[1737305500913,0.047669,105030.0,105020.0,0.0332]
[1737305501298,0.10000029,105030.0,105010.0,0.3608]
[1737305501505,0.10000529,105020.0,105010.0,0.36378155]
[1737305501805,0.10000529,105020.0,105010.0,0.3608]
[1737305501806,0.16470529,105020.0,105010.0,0.3608]
[1737305502108,0.112374,105020.0,105010.0,0.3608]
[1737305502309,0.047678,105010.0,105000.0,0.473781]
[1737305502513,0.047678,105010.0,105000.0,0.47676282]
[1737305502710,0.047678,105010.0,105000.0,0.4767628]
[1737305503111,0.047678,105010.0,105000.0,0.473781]
[1737305503414,0.047678,105010.0,105000.0,0.47676282]
[1737305503713,0.047678,105010.0,105000.0,0.473781]
[1737305504311,0.047678,105010.0,105000.0,0.112981]
[1737305504910,0.2185521,105010.0,105000.0,0.112981]
[1737305507515,0.2185521,105010.0,105000.0,0.11596285]
[1737305507711,0.2185521,105010.0,105000.0,0.16829414]
[1737305507916,0.2185521,105010.0,105000.0,0.14386253]
[1737305508212,0.2185521,105010.0,105000.0,0.50764441]
[1737305508404,0.4030632,105020.0,105000.0,0.50764441]
[1737305508610,0.4507382,105020.0,105010.0,0.05233129]
[1737305508915,0.0899382,105020.0,105010.0,0.05233129]
[1737305509116,0.0899382,105020.0,105010.0,0.46080929]
[1737305510413,0.0899382,105020.0,105010.0,0.10000929]
[1737305510612,0.27556546,105030.0,105020.0,0.047674]
[1737305510910,0.27556546,105030.0,105020.0,0.10000529]
[1737305510911,0.047671,105030.0,105020.0,0.10000529]
[1737305512015,0.047671,105030.0,105020.0,0.46080529]
[1737305512615,0.047671,105030.0,105020.0,0.408474]
[1737305512813,0.047671,105030.0,105020.0,0.46080529]
[1737305513119,0.047671,105030.0,105020.0,0.46378652]
[1737305513618,0.047671,105030.0,105020.0,0.46080529]
[1737305514121,0.047671,105030.0,105020.0,0.49330529]
[1737305515622,0.047671,105030.0,105020.0,0.440974]
[1737305516618,0.047671,105030.0,105020.0,0.44395521]
[1737305517112,0.19043461,105030.0,105020.0,0.44395521]
[1737305518116,0.47497311,105030.0,105020.0,0.44395521]
[1737305519307,0.42730211,105030.0,105020.0,0.4962865]
[1737305519517,0.42730211,105030.0,105020.0,0.5298865]
[1737305520917,0.37682486,105030.0,105020.0,0.5298865]
[1737305521109,0.37682486,105030.0,105020.0,0.53465623]
[1737305522226,0.45858986,105040.0,105030.0,0.047669]
[1737305522516,0.45858986,105040.0,105030.0,0.41145005]
[1737305523221,0.42448986,105040.0,105030.0,0.46378134]
[1737305523410,0.37682486,105040.0,105030.0,0.46378134]
[1737305523617,0.28522022,105050.0,105040.0,0.047665]
[1737305523618,0.25673341,105050.0,105040.0,0.047665]
[1737305523825,0.25673341,105050.0,105040.0,0.49399629]
[1737305524017,0.24706865,105050.0,105040.0,0.49399629]
[1737305524215,0.24706865,105050.0,105040.0,0.441665]
[1737305526727,0.30433798,105050.0,105040.0,0.441665]
[1737305528614,0.30433798,105050.0,105040.0,0.080865]
[1737305529130,0.30433798,105050.0,105040.0,0.441665]
[1737305529320,0.16173966,105050.0,105040.0,0.080865]
[1737305530833,0.30433798,105050.0,105040.0,0.080865]
[1737305532519,0.25667698,105050.0,105040.0,0.496977]
[1737305532721,0.17254654,105060.0,105040.0,0.50889896]
[1737305532931,0.17254654,105060.0,105050.0,0.46079129]
[1737305533124,0.17254654,105060.0,105050.0,0.463772]
[1737305533721,0.19940765,105070.0,105050.0,0.56192414]
[1737305534030,0.19940765,105070.0,105060.0,0.51311858]
[1737305534224,0.17095152,105070.0,105060.0,0.52801864]
[1737305534618,0.17095152,105070.0,105060.0,0.52801711]
[1737305535521,0.17095152,105070.0,105060.0,0.47568582]
[1737305536233,0.0344,105080.0,105060.0,0.42802982]
[1737305536424,0.0344,105080.0,105070.0,0.46078229]
[1737305536620,0.13437829,105080.0,105070.0,0.3608]
[1737305536829,0.13437829,105080.0,105060.0,0.408454]
[1737305536830,0.49517829,105080.0,105060.0,0.408454]
[1737305537031,0.110351,105070.0,105060.0,0.408454]
[1737305540840,0.16268229,105070.0,105060.0,0.3608]
[1737305541037,0.57113729,105070.0,105050.0,0.408459]
[1737305541231,0.0314,105060.0,105050.0,0.42037937]
[1737305541739,0.0314,105060.0,105050.0,0.408459]
[1737305543141,0.0314,105060.0,105050.0,0.047659]
[1737305543439,0.0314,105060.0,105050.0,0.408459]
[1737305546844,0.0314,105060.0,105050.0,0.41143924]
[1737305547139,0.54451858,105060.0,105040.0,0.3608]
[1737305547331,0.04766,105050.0,105040.0,0.00298059]
[1737305547741,0.04766,105050.0,105040.0,0.36378059]
[1737305549646,0.04766,105050.0,105040.0,0.41144559]
[1737305550539,0.04766,105050.0,105040.0,0.05064559]
[1737305551846,0.04766,105050.0,105040.0,0.047665]
[1737305552041,0.04766,105050.0,105040.0,0.05064572]
[1737305552352,0.04766,105050.0,105040.0,0.41621466]
[1737305552541,0.04766,105050.0,105040.0,0.05064572]
[1737305553753,0.04766,105050.0,105040.0,0.047665]
[1737305554353,0.07926,105050.0,105040.0,0.047665]
[1737305556060,0.25038639,105050.0,105040.0,0.047665]
[1737305558558,0.25038639,105050.0,105040.0,0.408465]
[1737305560064,0.20272639,105050.0,105040.0,0.408465]
[1737305560457,0.20272639,105050.0,105040.0,0.41144555]
[1737305560953,0.20272639,105050.0,105040.0,0.408465]
[1737305561159,0.20272639,105050.0,105040.0,0.41144554]
[1737305561560,0.20272639,105050.0,105040.0,0.46377683]
[1737305563175,0.0316,105050.0,105040.0,0.69128439]
[1737305566467,0.0316,105050.0,105040.0,0.64831002]
[1737305569968,0.0316,105050.0,105040.0,0.64831008]
[1737305571172,0.20272639,105050.0,105040.0,0.59192073]
[1737305572875,0.20272639,105050.0,105040.0,0.59668961]
[1737305573981,0.20272639,105050.0,105040.0,0.59668943]
[1737305574573,0.20272639,105050.0,105040.0,0.59668946]
[1737305575179,0.20272639,105050.0,105040.0,0.58733254]
[1737305575383,0.23562639,105050.0,105040.0,0.58733254]
[1737305575872,0.23562639,105050.0,105040.0,0.58733261]
[1737305576578,0.16449129,105050.0,105040.0,0.17886761]
[1737305576785,0.52529129,105050.0,105040.0,0.07416761]
[1737305577080,0.047665,105040.0,105030.0,0.22893554]
[1737305577283,0.46079629,105040.0,105030.0,0.22893554]
[1737305577471,0.46079629,105040.0,105030.0,0.22750756]
[1737305578777,0.46079629,105040.0,105020.0,0.22750756]
[1737305578778,0.047669,105030.0,105020.0,0.22750756]
[1737305578977,0.51313158,105030.0,105020.0,0.22750756]
[1737305579983,0.51313158,105030.0,105010.0,0.22750756]
[1737305579984,0.047674,105020.0,105010.0,0.22750756]
[1737305580181,0.52800529,105020.0,105010.0,0.22750756]
[1737305580375,0.52800529,105020.0,105010.0,0.27518556]
[1737305581087,0.67085066,105020.0,105010.0,0.047678]
[1737305581280,0.047678,105010.0,105000.0,0.30058756]
[1737305581578,0.10000929,105010.0,105000.0,0.30058756]
[1737305581782,0.10000929,105010.0,105000.0,0.66138756]
[1737305582483,0.047678,105010.0,105000.0,0.66138756]
[1737305582687,0.047678,105010.0,105000.0,0.65377049]
[1737305584686,0.10965252,105010.0,105000.0,0.63598756]
[1737305585072,0.10965252,105010.0,105000.0,0.40848]
[1737305585480,0.10965252,105010.0,105000.0,0.04768]
[1737305585882,0.05732123,105010.0,105000.0,0.04768]
[1737305586488,0.05732123,105010.0,105000.0,0.40848]
[1737305586889,0.05732123,105010.0,105000.0,0.04768]
[1737305587787,0.05732123,105010.0,104990.0,0.5216852]
[1737305587986,0.10965252,105010.0,104990.0,0.53373699]
[1737305588377,0.05732123,105010.0,105000.0,0.3608]
[1737305588791,0.05732123,105010.0,104990.0,0.5693702]
[1737305588991,0.10965252,105010.0,104990.0,0.53671872]
[1737305589192,0.10965252,105010.0,105000.0,0.047683]
[1737305589391,0.10965252,105010.0,105000.0,0.00298179]
[1737305589889,0.10965252,105010.0,105000.0,0.00298184]
[1737305590782,0.47045252,105010.0,105000.0,0.00298184]
[1737305591084,0.10965252,105010.0,105000.0,0.00298184]
[1737305591292,0.10965252,105010.0,105000.0,0.00298193]
[1737305591590,0.10965252,105010.0,105000.0,0.36378193]
[1737305592283,0.10965252,105010.0,105000.0,0.3608]
[1737305592590,0.10965252,105010.0,105000.0,0.36378189]
[1737305592784,0.06197452,105010.0,105000.0,0.3608]
[1737305592987,0.10965252,105010.0,105000.0,0.3608]
[1737305593195,0.10965252,105010.0,105000.0,0.36378187]
[1737305594280,0.10965252,105010.0,105000.0,0.00298187]
[1737305594888,0.05732123,105010.0,105000.0,0.00298187]
[1737305595693,0.05732123,105010.0,105000.0,0.00198647]
[1737305597396,0.05732123,105010.0,104990.0,0.55529852]
[1737305597596,0.05732123,105010.0,104990.0,0.571997]
[1737305597896,0.05732123,105010.0,104990.0,0.56722601]
[1737305598295,0.05732123,105010.0,104990.0,0.57199705]
[1737305598899,0.10965252,105010.0,104990.0,0.57199705]
[1737305599088,0.10965252,105010.0,104990.0,0.56722601]
[1737305599289,0.10965252,105010.0,104990.0,0.55529852]
[1737305599895,0.05732123,105010.0,104990.0,0.60762981]
[1737305600202,0.05732123,105010.0,105000.0,0.047683]
[1737305600792,0.09167347,105010.0,105000.0,0.047683]
[1737305601802,0.05732123,105010.0,105000.0,0.44283524]
[1737305602195,0.26304248,105020.0,105000.0,0.44283524]
[1737305603209,0.27263387,105020.0,105000.0,0.44283524]
[1737305603394,0.20358163,105020.0,105010.0,0.08203024]
[1737305603593,0.20358163,105020.0,105010.0,0.47623024]
[1737305604296,0.20358163,105020.0,105010.0,0.11543024]
[1737305604502,0.20358163,105020.0,105010.0,0.47623024]
[1737305604906,0.20358163,105020.0,105010.0,0.441878]
[1737305605402,0.17108163,105020.0,105010.0,0.441878]
[1737305606207,0.17108163,105020.0,105010.0,0.4466484]
[1737305606793,0.22341432,105020.0,105010.0,0.4466484]
[1737305607403,0.36625969,105020.0,105010.0,0.67415596]
[1737305607810,0.36625969,105020.0,105010.0,0.67713746]
[1737305608703,0.36625969,105020.0,105010.0,0.4496299]
[1737305608704,0.10960008,105020.0,105010.0,0.4496299]
[1737305608904,0.05726739,105020.0,105010.0,0.4496299]
[1737305610006,0.10960008,105020.0,105010.0,0.4496299]
[1737305610511,0.05726739,105020.0,105010.0,0.4496299]
[1737305612200,0.00959139,105020.0,105010.0,0.4496299]
[1737305612406,0.5610058,105030.0,105010.0,0.4496299]
[1737305613715,0.04637285,105020.0,105010.0,0.4496299]
[1737305614417,0.04637285,105020.0,105010.0,0.4448595]
[1737305615117,0.21782377,105020.0,105010.0,0.0840595]
[1737305615308,0.21782377,105020.0,105010.0,0.08405956]
[1737305615509,0.21782377,105020.0,105010.0,0.44485956]
[1737305616220,0.21782377,105020.0,105010.0,0.67236712]
[1737305616221,0.14287245,105020.0,105010.0,0.67236712]
[1737305616420,0.14287245,105020.0,105010.0,0.74126712]
[1737305617013,0.14287245,105020.0,105010.0,0.74603754]
[1737305617214,0.2571636,105020.0,105010.0,0.74603754]
[1737305617923,0.2571636,105020.0,105010.0,0.74126712]
[1737305618215,0.2571636,105020.0,105010.0,0.79837024]
[1737305618416,0.2571636,105020.0,105010.0,0.81745075]
[1737305618618,0.2571636,105020.0,105010.0,0.82937607]
[1737305619716,0.2571636,105030.0,105010.0,1.16142866]
[1737305619918,0.2571636,105030.0,105020.0,0.46080669]
[1737305620117,0.2571636,105030.0,105020.0,0.46855868]
[1737305620317,0.2571636,105030.0,105020.0,0.49956182]
[1737305621321,0.2571636,105030.0,105020.0,1.23481142]
[1737305621322,0.10000169,105030.0,105020.0,1.23481142]
[1737305621526,0.10000169,105030.0,105020.0,1.20381071]
[1737305621817,0.10000169,105030.0,105020.0,1.20381175]
[1737305622019,0.13510169,105030.0,105020.0,1.20381175]
[1737305622218,0.13510169,105030.0,105020.0,0.84301175]
[1737305622419,0.24939284,105030.0,105020.0,0.00775121]
[1737305622719,0.24939284,105030.0,105020.0,0.00298123]
[1737305623315,0.047674,105020.0,105010.0,0.66990239]
[1737305623515,0.10000669,105020.0,105010.0,0.67765416]
[1737305623714,0.10000669,105020.0,105010.0,0.31685416]
[1737305624420,0.10000669,105020.0,105010.0,0.67765416]
[1737305624825,0.05233269,105020.0,105010.0,0.67765416]
[1737305625020,0.11420004,105020.0,105010.0,0.44962777]
[1737305625221,0.11420004,105020.0,105010.0,0.44962792]
[1737305629214,0.11420004,105020.0,105010.0,0.44485748]
[1737305629718,0.16653273,105020.0,105010.0,0.67288387]
[1737305630621,0.20093273,105020.0,105010.0,0.67288387]
[1737305630822,0.24019753,105020.0,105010.0,0.44485748]
[1737305631824,0.06874661,105020.0,105010.0,0.44485748]
[1737305632125,0.11511961,105020.0,105010.0,0.44485748]
[1737305632319,0.046373,105020.0,105010.0,0.44485748]
[1737305632519,0.046373,105020.0,105010.0,0.47920409]
[1737305633221,0.50426644,105030.0,105010.0,0.47920409]
[1737305633527,0.50426644,105030.0,105020.0,0.047674]
[1737305634320,0.55394327,105030.0,105020.0,0.047674]
[1737305636333,0.55394327,105030.0,105020.0,0.05065545]
[1737305637837,0.29811131,105030.0,105020.0,0.05065552]
[1737305638027,0.4410031,105030.0,105020.0,0.05065552]
[1737305638326,0.8018031,105030.0,105020.0,0.05065552]
[1737305639237,0.65891131,105030.0,105020.0,0.05065548]
[1737305640725,0.29811131,105030.0,105020.0,0.05065548]
[1737305641038,0.65891131,105030.0,105020.0,0.05065548]
[1737305642739,0.65891131,105030.0,105020.0,0.05065545]
[1737305644040,0.29811131,105030.0,105020.0,0.05065545]
[1737305645338,0.29811131,105030.0,105020.0,0.047674]
[1737305645534,0.29811131,105030.0,105020.0,0.05065545]
[1737305645839,0.29811131,105030.0,105020.0,0.047674]
[1737305646030,0.29811131,105030.0,105020.0,0.05065546]
[1737305646235,0.29811131,105030.0,105020.0,0.05065544]
[1737305646540,0.29811131,105030.0,105020.0,0.05065543]
[1737305646838,0.12664116,105030.0,105020.0,0.05065543]
[1737305647234,0.12664116,105030.0,105020.0,0.05065542]
[1737305648037,0.30715112,105030.0,105020.0,0.05065542]
[1737305648738,0.30715112,105030.0,105020.0,0.05065541]
[1737305649143,0.12664116,105030.0,105020.0,0.05065541]
[1737305650442,0.32604881,105030.0,105020.0,0.05065541]
[1737305651046,0.68684881,105030.0,105020.0,0.05065541]
[1737305651231,0.68684881,105030.0,105020.0,0.00298141]
[1737305651437,0.047674,105020.0,105010.0,0.441877]
[1737305651637,0.08202061,105020.0,105010.0,0.44485848]
[1737305653243,0.2537108,105020.0,105010.0,0.67288487]
[1737305656152,0.2537108,105020.0,105010.0,0.62520787]
[1737305656339,0.2537108,105020.0,105010.0,0.62222639]
[1737305656534,0.28805741,105020.0,105010.0,0.62222639]
[1737305656742,0.047678,105010.0,105000.0,0.28438445]
[1737305656947,0.14962461,105010.0,105000.0,0.28736609]
[1737305657133,0.14962461,105010.0,105000.0,0.28438445]
[1737305658048,0.047683,105000.0,104990.0,0.443686]
[1737305658248,0.08202961,105000.0,104990.0,0.443686]
[1737305658435,0.08202961,105000.0,104990.0,0.09779568]
[1737305658639,0.08202961,105000.0,104990.0,0.45859568]
[1737305658946,0.08202961,105000.0,104990.0,0.45859567]
[1737305659246,0.08202961,105000.0,104990.0,0.45561385]
[1737305659445,0.08202961,105000.0,104990.0,0.45859575]
[1737305659841,0.047683,105000.0,104990.0,0.49294236]
[1737305660348,0.08202961,105000.0,104990.0,0.49294236]
[1737305660543,0.047683,105000.0,104990.0,0.49294209]
[1737305661048,0.047683,105000.0,104990.0,0.4899602]
[1737305661245,0.047683,105000.0,104990.0,0.49294209]
[1737305661647,0.28223994,105000.0,104990.0,0.49771315]
[1737305661948,0.2918093,105000.0,104990.0,0.46336654]
[1737305662141,0.2918093,105000.0,104990.0,0.49771315]
[1737305662348,0.26311298,105000.0,104990.0,0.45009637]
[1737305662548,0.22876637,105000.0,104990.0,0.4500963]
[1737305663050,0.22876637,105000.0,104990.0,0.43816878]
[1737305663250,0.22876637,105000.0,104990.0,0.45009626]
[1737305663943,0.26311298,105000.0,104990.0,0.45009626]
[1737305664356,0.22876637,105000.0,104990.0,0.45003626]
[1737305664565,0.21919701,105000.0,104990.0,0.45003626]
[1737305665261,0.17151401,105000.0,104990.0,0.45003626]
[1737305665462,0.17151401,105000.0,104990.0,0.48463626]
[1737305665672,0.20021033,105010.0,104990.0,0.51898287]
[1737305665857,0.20021033,105010.0,105000.0,0.54957622]
[1737305666059,0.20021033,105010.0,105000.0,0.56925665]
[1737305666755,0.14284224,105010.0,105000.0,0.52157365]
[1737305667067,0.14284224,105010.0,105000.0,0.56925665]
[1737305668168,0.30479475,105020.0,105010.0,0.047678]
[1737305668363,0.30479475,105020.0,105010.0,0.4458065]
[1737305669362,0.22486385,105020.0,105010.0,0.41145989]
[1737305669563,0.19051724,105020.0,105010.0,0.4458065]
[1737305669762,0.22486385,105020.0,105010.0,0.41145989]
[1737305670464,0.22486385,105020.0,105010.0,0.4458065]
[1737305670668,0.22486385,105020.0,105010.0,0.41145989]
[1737305671671,0.22486385,105020.0,105010.0,0.4458065]
[1737305671672,0.19051724,105020.0,105010.0,0.4458065]
[1737305672562,0.22486385,105020.0,105010.0,0.41145989]
[1737305673269,0.3391454,105020.0,105010.0,0.41145989]
[1737305673662,0.30479879,105020.0,105010.0,0.41623018]
[1737305673867,0.3391454,105020.0,105010.0,0.41623018]
[1737305674460,0.3391454,105020.0,105010.0,0.4162299]
[1737305675370,0.30479879,105020.0,105010.0,0.4162299]
[1737305675568,0.3391454,105020.0,105010.0,0.4162299]
[1737305675872,0.22486385,105020.0,105010.0,0.4162299]
[1737305676476,0.22486385,105020.0,105010.0,0.41622966]
[1737305678567,0.22486385,105020.0,105010.0,0.4162297]
[1737305680466,0.22486385,105020.0,105010.0,0.4162296]
[1737305683281,0.08202161,105020.0,105010.0,0.4162296]
[1737305684477,0.12839347,105020.0,105010.0,0.41622977]
[1737305685071,0.12839347,105020.0,105010.0,0.41622988]
[1737305685877,0.08202161,105020.0,105010.0,0.41622988]
[1737305686072,0.047675,105020.0,105010.0,0.41622988]
[1737305686271,0.08202161,105020.0,105010.0,0.41622988]
[1737305687070,0.08202161,105020.0,105010.0,0.36378149]
[1737305687278,0.047687,104990.0,104980.0,0.28539161]
[1737305687480,0.47718022,104990.0,104970.0,0.34254803]
[1737305687675,0.18718522,104980.0,104970.0,0.34254803]
[1737305688783,0.34235525,104980.0,104970.0,7.809e-05]
[1737305689171,0.28997231,104980.0,104970.0,7.809e-05]
[1737305689884,0.37531469,104980.0,104970.0,7.809e-05]
[1737305690580,0.32762269,104980.0,104950.0,0.52208294]
[1737305690785,0.047696,104970.0,104960.0,0.4085]
[1737305690972,0.047696,104970.0,104960.0,0.46088294]
[1737305691678,0.04777409,104970.0,104960.0,0.46088294]
[1737305694785,0.04777409,104970.0,104960.0,0.4085]
[1737305698088,0.04777409,104970.0,104960.0,0.420431]
[1737305698286,0.04777409,104970.0,104960.0,0.4085]
[1737305699189,0.04777409,104970.0,104960.0,0.41148278]
[1737305703884,0.05755226,104970.0,104960.0,0.4085]
[1737305704602,0.05755226,104970.0,104960.0,0.41148281]
[1737305704888,0.04777409,104970.0,104960.0,0.41148281]
[1737305705684,0.04777409,104970.0,104960.0,0.4085]
[1737305708889,0.04777409,104970.0,104960.0,0.46088294]
[1737305709198,0.04777409,104970.0,104960.0,0.4085]